Cogmind - Beta 15 @@@ ROGUE MODE // 2025.07.28 @ 09:56:15 Player: Solshine Result: Destroyed by Y-45 Defender with Heavy Assault Rifle Performance ------------- Evolutions (1) 500 Regions Visited (4) 800 Robots Destroyed (19) 95 Value Destroyed (433) 433 Prototype IDs (2) 40 Alien Tech Used (0) 0 Bonus (113) 113 TOTAL SCORE: 1981 Bonus ------- Follower Combat Kills 128 Friendly Fire -15 Cogmind --------- Core Integrity 0/400 Matter 300/300 Energy 183/250 System Corruption 0% Temperature Hot (260) Movement Core (150) Ox2 Location -9/Storage Parts ------- > --- POWER (1) -------- Ion Engine > --- PROPULSION (4) --- (None) > --- UTILITY (2) ------ (None) > --- WEAPON (2) ------- Particle Gun > --- INVENTORY (5) ---- Improved Ion Engine Sensor Array Drone Bay (2/2) Heavy Particle Gun Assault Rifle Peak State ------------ > --- POWER ------------ Light Nuclear Core > --- PROPULSION ------- Aluminum Leg Aluminum Leg Aluminum Leg Carbon-fiber Leg > --- UTILITY ---------- Structural Scanner Improved Sensor Array > --- WEAPON ----------- Heavy Particle Gun Missile Launcher > --- INVENTORY -------- Deuterium Engine Sensor Array Assault Rifle Light Assault Rifle [Rating: 20] Favorites ----------- Power Ion Engine Engine Ion Engine Power Core Light Nuclear Core Propulsion Aluminum Leg Leg Aluminum Leg Utility Structural Scanner Device Structural Scanner Storage Small Storage Unit Weapon Assault Rifle Energy Gun Heavy Particle Gun Energy Cannon Advanced Beam Cannon Ballistic Gun Assault Rifle Launcher Missile Launcher Build | -11 -10 -10 -9 -9 ------- Run | Yrd Mat Min Mat Sto Slots Evolved 2 | . . . 2 . Power . | . . . . . Propulsion 2 | . . . 2 . Utility . | . . . . . Weapon . | . . . . . Parts Attached 24 | 7 3 7 4 3 Power 5 | 1 . 2 1 1 Engine 4 | 1 . 1 1 1 Core 1 | . . 1 . . Reactor . | . . . . . Propulsion 7 | 2 . 3 2 . Treads . | . . . . . Leg 7 | 2 . 3 2 . Wheel . | . . . . . Hover . | . . . . . Flight . | . . . . . Utility 5 | 2 2 1 . . Device 4 | 1 2 1 . . Storage 1 | 1 . . . . Processor . | . . . . . Hackware . | . . . . . Protection . | . . . . . Artifact . | . . . . . Weapon 7 | 2 1 1 1 2 Energy Gun 3 | . 1 . 1 1 Energy Cannon 1 | . . . . 1 Ballistic Gun 2 | 2 . . . . Ballistic Cannon . | . . . . . Launcher 1 | . . 1 . . Special Weapon . | . . . . . Impact Weapon . | . . . . . Slashing Weapon . | . . . . . Piercing Weapon . | . . . . . Special Melee Weapon . | . . . . . Unidentified Prototypes 2 | . . . 1 1 Parts Lost 10 | . . . 4 6 Power 2 | . . . 1 1 Propulsion 4 | . . . 3 1 Utility 2 | . . . . 2 Weapon 2 | . . . . 2 Highest Loss Streak 5 | . . . 3 5 To Critical Strikes . | . . . . . Average Backups 4 | 3 4 4 4 4 Power . | 1 1 1 . 1 Propulsion . | 1 1 . . . Utility . | . . 1 1 1 Weapon 1 | 1 1 1 2 2 Tool/Special . | . . . . . Unused Backups 7 | . 1 3 . 3 Power 2 | . . 1 . 1 Propulsion 2 | . 1 1 . . Utility 2 | . . 1 . 1 Weapon 1 | . . . . 1 Tool/Special . | . . . . . Average Slot Usage (%) 88 | . 100 100 88 56 Engine 7 | . 14 6 4 9 Core 3 | . . 7 6 . Leg 27 | . 28 28 34 12 Device 22 | . 21 28 22 19 Storage 1 | . 7 . . . Energy Gun 7 | . 8 7 9 3 Energy Cannon 1 | . . . . 7 Ballistic Gun 8 | . 19 14 1 . Launcher 6 | . . 6 11 4 Peak Build Rating 20 | 7 7 15 20 19 Average Rating 12 | 5 7 11 18 12 On Entrance 9 | . 7 7 15 18 Naked Turns . | . . . . . Heaviest Build 21 | 14 14 15 20 21 Greatest Support 45 | 20 20 25 45 25 Greatest Overweight (x) 4 | . . . 3 4 Average Overweight (x) . | . . . . . Largest Inventory Capacity 8 | 8 8 5 5 5 Average Capacity 5 | 7 6 5 5 5 Most Carried 6 | 5 6 5 5 5 Average Carried 4 | 3 4 4 4 4 Final Capacity 8 | 8 5 5 5 5 Final Carried 5 | 4 5 5 4 5 Class Distribution -------------------- 100% | Mutant Dominant Class ---------------- Mutant | -10/Materials Mutant | -10/Mines Mutant | -9/Materials Mutant | -9/Storage Resources | -11 -10 -10 -9 -9 ----------- Run | Yrd Mat Min Mat Sto Matter Collected 581 | 170 108 155 82 66 Remotely . | . . . . . Salvage Created 588 | 34 . 40 425 89 Parts 28 | 3 . 5 17 3 Haulers Intercepted . | . . . . . Recyclers Shooed . | . . . . . Parts Field Recycled . | . . . . . Retrieved Matter . | . . . . . Parts Self-Destructed . | . . . . . Prevented . | . . . . . Kills | -11 -10 -10 -9 -9 ------- Run | Yrd Mat Min Mat Sto Combat Hostiles Destroyed 13 | . . 2 9 2 Guns 9 | . . 2 6 1 Cannons 1 | . . . . 1 AOE 3 | . . . 3 . Classes Destroyed 7 | 1 . 2 4 . Worker 1 | . . 1 . . Tunneler 2 | 2 . . . . Recycler 2 | . . . 2 . Watcher 1 | . . . 1 . Swarmer 5 | . . 2 3 . Grunt 6 | . . . 4 2 Sentry 2 | . . . 2 . Best Kill Streak 6 | 1 . 3 6 1 Combat Bots Only 4 | . . 2 4 1 Max Kills in Single Turn 2 | 1 . 1 2 1 Gunslinging . | . . . . . Exploded 2 | . . . 2 . Melee . | . . . . . Uniques/NPCs Destroyed . | . . . . . Combat | -11 -10 -10 -9 -9 -------- Run | Yrd Mat Min Mat Sto Hostile Shots Fired 171 | . 5 37 65 64 Missed 54 | . . 17 21 16 Hits 117 | . 5 20 44 48 Projectile 117 | . 5 20 44 48 Critical Strikes 4 | . . . 2 2 Damage Taken 1447 | . 43 182 594 628 Core 433 | . . 26 112 295 Absorbed by Shields . | . . . . . Core Remaining (%) 94 | 100 . 89 . . Volleys Fired 69 | 8 1 9 34 17 Largest 2 | 2 2 2 1 2 Hottest 133 | 40 40 60 55 133 Shots Fired 88 | 16 2 18 34 18 Gun 73 | 16 2 18 27 10 Cannon 8 | . . . . 8 Launcher 7 | . . . 7 . Special . | . . . . . Kinetic 27 | 16 2 9 . . Thermal 54 | . . 9 27 18 Explosive 7 | . . . 7 . Electromagnetic . | . . . . . Robot Hit Streak 13 | 9 1 5 13 4 Robot Miss Streak 3 | 1 1 3 2 1 Penetration Max . | . . . . . Secondary Targets . | . . . . . Shots Hit Robots 60 | 12 1 10 24 13 Core Hits 28 | 3 . 5 15 5 Critical Kills . | . . . . . Critical Parts Destroyed 1 | 1 . . . . Critical Strikes 2 | 1 . . 1 . Burn 1 | . . . 1 . Destroy 1 | 1 . . . . Melee Attacks . | . . . . . Impact . | . . . . . Slashing . | . . . . . Piercing . | . . . . . Sneak Attacks . | . . . . . Combat Hostiles . | . . . . . Follow-up Attacks . | . . . . . Damage Inflicted 1257 | 135 6 132 734 250 Guns 838 | 135 6 132 438 127 Cannons 123 | . . . . 123 Explosions 285 | . . . 285 . Melee . | . . . . . Ramming 11 | . . . 11 . Kinetic 218 | 135 6 77 . . Thermal 743 | . . 55 438 250 Explosive 285 | . . . 285 . Electromagnetic . | . . . . . Impact . | . . . . . Slashing . | . . . . . Piercing . | . . . . . Highest Corruption . | . . . . . Average Corruption . | . . . . . Corruption Purged . | . . . . . Corruption Blocked . | . . . . . Overload Shots . | . . . . . Overflow Damage 14 | . . . 14 . Projectiles . | . . . . . Explosions 14 | . . . 14 . Melee . | . . . . . Knockbacks . | . . . . . Impact . | . . . . . Kinetic . | . . . . . Secondary . | . . . . . Self-Inflicted Damage 24 | . . . 24 . Shots 1 | . . . 1 . Rammed . | . . . . . Targets Rammed 6 | . . . 6 . Kicked 6 | . . . 6 . Crushed . | . . . . . Highest Temperature 292 | . . 12 292 270 Average Temperature 108 | . . 10 116 140 Received Heat Transfer 702 | . . 48 312 342 Siege Activations . | . . . . . Martial Activations . | . . . . . Shielding Activations . | . . . . . Robots Disrupted . | . . . . . Combat Hostiles . | . . . . . Robots Corrupted . | . . . . . Combat Hostiles . | . . . . . Parts Fried . | . . . . . Impact Corruptions . | . . . . . Robots Melted . | . . . . . Combat Hostiles . | . . . . . Parts Melted 1 | . . . 1 . Heat Transferred 1558 | . . 125 925 508 Parts Sabotaged . | . . . . . Parts Stolen . | . . . . . Parts Stripped . | . . . . . Power Chain Reactions . | . . . . . Alert | -11 -10 -10 -9 -9 ------- Run | Yrd Mat Min Mat Sto Maximum Alert Level . | . . . . . Low Security (%) 100 | 100 100 100 100 100 Level 1 . | . . . . . Level 2 . | . . . . . Level 3 . | . . . . . Level 4 . | . . . . . Level 5 . | . . . . . High Security . | . . . . . Max Security . | . . . . . Peak Influence 179 | 5 . 45 179 177 Initial 67 | . . . . 67 Average 42 | . . 8 71 103 Influence Increases 702 | 10 . 55 387 250 Destroy 0b10 Robot/C 420 | . . 40 180 200 Destroy 0b10 Robot/NC 35 | 10 . 5 15 5 Destroy Leader 84 | . . 10 52 22 Allied During Kill 21 | . . . . 21 Successful Hack 11 | . . . 9 2 Disable Machine 30 | . . . 30 . Destroy Structure 56 | . . . 56 . Lose Combat Pursuer 45 | . . . 45 . Influence Decreases 585 | 10 . 55 227 293 Entered New Map 93 | . . . . 93 Time Decay 352 | 10 . 55 187 100 Lost Part 100 | . . . 40 60 Lost Ally 40 | . . . . 40 Squads Dispatched 4 | . . 1 1 2 Investigation 1 | . . 1 . . Extermination . | . . . . . Reinforcement 1 | . . . 1 . Assault 2 | . . . . 2 Garrison . | . . . . . Intercept . | . . . . . Searches Triggered . | . . . . . Construction Impeded . | . . . . . Haulers Reinforced . | . . . . . Active Scanning Responses . | . . . . . Cargo Convoy Interrupts . | . . . . . Stealth | -11 -10 -10 -9 -9 --------- Run | Yrd Mat Min Mat Sto Distress Signals 2 | . . . 1 1 Communications Jammed . | . . . . . Distress Signals . | . . . . . Times Spotted 53 | . 4 6 21 22 Peak Tracking Total 12 | . 3 4 6 12 Tactical Retreats 2 | . . . 2 . Traps | -11 -10 -10 -9 -9 ------- Run | Yrd Mat Min Mat Sto Traps Triggered 4 | . . . . 4 Indirectly . | . . . . . Trap Hack Attempts . | . . . . . Triggered . | . . . . . Disarmed . | . . . . . Reprogrammed . | . . . . . Reused . | . . . . . Traps Extracted . | . . . . . Installed . | . . . . . Triggered . | . . . . . Machines | -11 -10 -10 -9 -9 ---------- Run | Yrd Mat Min Mat Sto Machines Disabled 2 | . . . 2 . Max in Single Turn 1 | . . . 1 . Machines Repaired . | . . . . . Machines Dismantled . | . . . . . Machines Sabotaged . | . . . . . Overloaded Fab Kills . | . . . . . Hacking | -11 -10 -10 -9 -9 --------- Run | Yrd Mat Min Mat Sto Machines Accessed 8 | . 2 1 3 2 Terminals 6 | . 2 . 2 2 Fabricators . | . . . . . Repair Stations . | . . . . . Recycling Units 1 | . . . 1 . Scanalyzers . | . . . . . Garrison Access . | . . . . . Total Hacks 22 | . 4 1 15 2 Successful 14 | . 1 1 10 2 Failed 8 | . 3 . 5 . Catastrophic 1 | . . . 1 . Database Lockouts . | . . . . . Manual 4 | . . . 4 . Terminals 16 | . 4 . 10 2 Fabricators . | . . . . . Repair Stations . | . . . . . Recycling Units 5 | . . . 5 . Scanalyzers . | . . . . . Garrison Access . | . . . . . Terminal Hacks 12 | . 1 1 8 2 Record 7 | . . . 7 . Open Door 3 | . . 1 . 2 Alert Level 1 | . 1 . . . Dispatch Records 1 | . . . 1 . Fabricator Hacks . | . . . . . Repair Station Hacks . | . . . . . Recycling Unit Hacks 2 | . . . 2 . Report Inventory 1 | . . . 1 . Retrieve Components 1 | . . . 1 . Scanalyzer . | . . . . . Garrison Access Hacks . | . . . . . Unauthorized Hacks . | . . . . . Terminals . | . . . . . Fabricators . | . . . . . Repair Stations . | . . . . . Recycling Units . | . . . . . Scanalyzers . | . . . . . Garrison Access . | . . . . . Data Cores Recovered . | . . . . . Used . | . . . . . Hacking Detections 5 | . 2 . 3 . Full Trace Events 1 | . . . 1 . Feedback Events . | . . . . . Feedback Blocked . | . . . . . Robot Schematics Acquired . | . . . . . Robots Built . | . . . . . Authchips . | . . . . . Time . | . . . . . Total Robot Build Rating . | . . . . . Part Schematics Acquired . | . . . . . Parts Built . | . . . . . Authchips . | . . . . . Time . | . . . . . Total Part Build Rating . | . . . . . Parts Repaired . | . . . . . Time . | . . . . . Parts Recycled . | . . . . . Recycled Matter . | . . . . . Retrieved Matter . | . . . . . Retrieved Components 4 | . . . 4 . Parts Scanalyzed . | . . . . . Part Schematics Acquired . | . . . . . Parts Damaged . | . . . . . Bothacking | -11 -10 -10 -9 -9 ------------ Run | Yrd Mat Min Mat Sto Used RIF Installer . | . . . . . Robots Hacked . | . . . . . Non-combat . | . . . . . Combat . | . . . . . Robot Hacks Applied . | . . . . . Relay Couplers Released . | . . . . . Fabnet Peak Effective % . | . . . . . Robots Rewired . | . . . . . Allies Hacked . | . . . . . Hacks Repelled . | . . . . . Allies | -11 -10 -10 -9 -9 -------- Run | Yrd Mat Min Mat Sto Total Allies 2 | . . . . 2 Largest Group 2 | . . . . 2 Highest-Rated Group 62 | . . . . 62 Highest-Rated Ally 31 | . . . . 31 Total Orders . | . . . . . Ally Attacks 23 | . . . . 23 Total Damage 337 | . . . . 337 Kills 9 | . . . . 9 Allies Corrupted . | . . . . . Allies Melted . | . . . . . Intel | -11 -10 -10 -9 -9 ------- Run | Yrd Mat Min Mat Sto Active Infowar (turns) 1236 | 33 291 246 466 200 Sensors 1013 | . 129 246 466 172 Structural 1065 | . 153 246 466 200 Seismic 195 | 33 162 . . . Robot Analysis Total . | . . . . . Derelict Logs Recovered . | . . . . . Drone Launches . | . . . . . Drone Recoveries . | . . . . . Exploration | -11 -10 -10 -9 -9 ------------- Run | Yrd Mat Min Mat Sto Turns Passed 1367 | 145 291 246 474 211 Spaces Moved 898 | 97 207 167 313 114 Core 31 | 14 . . 2 15 Treads . | . . . . . Legs 867 | 83 207 167 311 99 Wheels . | . . . . . Hover . | . . . . . Flight . | . . . . . Fastest Speed 50 | 50 120 120 120 100 Average Speed 121 | 109 120 120 120 136 Slowest Speed 250 | 120 120 120 200 250 Overloaded Moves . | . . . . . Propulsion Burnouts . | . . . . . Robots Hopped . | . . . . . Potential Cave-ins 2 | . . . 2 . Cave-ins Triggered . | . . . . . Exploration Rate (%) 20 | 6 31 23 26 15 Regions Visited 4 Branch Regions 2 Pre-discovered Areas . | . . . . . Known Exits Taken . | . . . . . Unknown Exits Taken 4 | 1 1 1 1 . Scrap Searched . | . . . . . Spaces Dug 25 | . . . 25 . Terrain Destroyed 74 | . . . 74 . Melee . | . . . . . Projectile . | . . . . . AOE 74 | . . . 74 . Terrain Rammed . | . . . . . Walls Destroyed . | . . . . . Machines Disabled . | . . . . . Actions | -11 -10 -10 -9 -9 --------- Run | Yrd Mat Min Mat Sto Total 1081 | 120 246 196 372 147 Wait 58 | . 34 5 13 6 Move 894 | 96 206 166 312 114 Hop . | . . . . . Pick Up 17 | 9 2 2 2 2 Fast Attach 9 | 2 . . 1 6 Attach 8 | 5 . . 3 . Detach . | . . . . . Swap 12 | . 3 7 1 1 Drop 8 | . . 7 . 1 Fire 69 | 8 1 9 34 17 Melee . | . . . . . Ram . | . . . . . Kick 6 | . . . 6 . Crush . | . . . . . Escape Stasis . | . . . . . Rewire . | . . . . . Trap . | . . . . . Miscellaneous . | . . . . . Route ------- -11/Scrapyard -10/Materials -10/Mines -9/Materials (discovered 2 exits: [*Mat] / *Sto) -9/Storage History --------- Turn | Location | Event 23 | -11/Scrapyard | Discovered new exit (range 15) 146 | -11/Scrapyard | Entered Materials 305 | -10/Materials | Build established: Mutant 424 | -10/Materials | Discovered new exit (range 11) 437 | -10/Materials | Entered Mines 444 | -10/Mines | Met a Derelict shopkeep closing up shop 593 | -10/Mines | Discovered new exit (range 10) 683 | -10/Mines | Entered Materials 683 | -9/Materials | Evolved 2 slots: Propulsion x2 1016 | -9/Materials | Lost 3 parts (1p2n) 1102 | -9/Materials | Discovered new exit (range 15) 1149 | -9/Materials | Discovered new exit (range 16) 1157 | -9/Materials | Entered Storage 1188 | -9/Storage | Met a pair of Derelict thieves 1269 | -9/Storage | Core integrity fell below 50% 1340 | -9/Storage | Core integrity fell below 20% 1368 | -9/Storage | Destroyed by Y-45 Defender with Heavy Assault Rifle Last Messages --------------- K-01 Serf collects debris. Deuterium Engine destroyed. Connecting with Door Terminal... >>Open(Door) Sealed Heavy Doors opened. G-47 Trooper destroyed. Critical hit (Burn: +37). Imp. Sensor Array destroyed. Aluminum Leg destroyed. G-34 Mercenary destroyed. Acquired 20 matter. M-13 Machinist repairs G-47 Trooper. Critical hit (Burn: +37). Acquired Ion Engine. Acquired 10 matter. Acquired Particle Gun. Adv. Beam Cannon destroyed. Structural Scanner destroyed. G-47 Trooper destroyed. K-01 Serf collects debris. Map ----- +----------------------------------------------------+ | ?????????????????????????????????????? | | ?????????????????????????????????????? | | ?????????????????????????????????????? | | ?????????????????????????????????????? | | ?????????????????????????????????????? | | ?????????????????????????????????????? | | ?????????????????????????????????????? | | ?????????????????????????????????????? | | ?????????????????????????????????????? | | ?????????????????????????????????????? | | ?????????????????????????????????????? | | ?????????????????????????????????????? | | ?????????????????????????????????????? | | ?????????????????????????????????????? | | ?????????????????????????????????????? | | ?????????????????????????????????????? | | ?????????????????????????????????????? | | ?????????????##########??????????????? | | ?????????????##########??????????????? | | ?????????###### ??????????????? | | ?????????###### ?????????????????? | | ?????????##!!## ?????????????????? | | ?????????##!!## ##?????????????????? | | ????????###!!## ^##?????????????????? | | ????????### ## ##?????????????????? | | ????????##T @#! ##?????????????????? | | ????????### %=Ym ##?????????????????? | | ????????#######gk ##?????????????????? | | ?????????######g ##??????###????????? | | ?????????????## # ?????? ##????????? | | ?????????????## #"????"" # ???????? | | ?????????????## #"????"" # ????????# | | ?????????????## #"????"" # ????? ?" | | ?????????????## # ??? # ????? | | ?????????????## # ???!!! # ?????"" " | | ?????????????## # ???!!! # ????""" # | | ?????????????## # ???!! # ????""" # | | ??????######### # # # | | ??????######### #####+#########/#### | | ??????## =% *^[%==[%== | | ??????## [![==%!!= | | ??????## ^=*%[*= | | ??????#########+#######+#########/#### | | ??????######## ###### ### # | | ???????##!!! # #####T ##?????????? | | ???????## ######" "###?????????? | | ???????##!!!!#T##### !##?????????? | | ???????#############]] ##?????????? | | ???????##########?##[ [[##?????????? | | ??????????????????##] [ [##?????????? | +----------------------------------------------------+ Best States ------------- Heat Dissipation 28 Energy Generation 14 Energy Capacity 275 Matter Stores 300 Matter Capacity 300 Sight Range 16 Robot Scan Range 15 Terrain Scan Density 10 Evasion (%) 55 Item Schematics ----------------- None Robot Schematics ------------------ None Fabricated ------------ Nothing Repaired ---------- Nothing Alien Tech Used ----------------- None Achievements -------------- None Challenges ------------ None Game ------ Seed SniperSmartbombRigger Manual? 0 Play Time 00:26:25 Cumulative 7.4 hours Start 2025.07.28 @ 09:17:17 End 2025.07.28 @ 09:56:15 Sessions 1 Manual Loads 0 Difficulty Rogue Special Mode None Game No. 16 Rogue 16 Adventurer 0 Explorer 0 Win Type - Total 0 Types 0/0/0/0/0/0/0/0/0/0 Lore% 8 Gallery% 9 Achievement% 10 Wizard Run 0 Options --------- Layout 1 ASCII 0 Keyboard 1 Movement Numpad Keybinds 0 Fullscreen 1 Font 24/Smallcaps Map View 50x35 Zoom Use 0% Tactical HUD 0 Map Filters NONE Filters NONE Steam 1 RUN: 845a94cc-fbbb-4790-8a88-754452b68481